[Event "Titled Tuesday Blitz May 9 Early 2023"]
[White "Perez Gormaz, Matias"]
[Black "Pasti, Aron"]
[WhiteFideId "3406342"]
[BlackFideId "785857"]
[WhiteElo "2362"]
[BlackElo "2173"]
[Result "1-0"]
[Round "01"]
[TimeControl "180+2"]
[Date "2023.05.09"]
[WhiteClock "0:00:14"]
[BlackClock "0:00:07"]

1. e4 {[%clk 0:02:59]}  c5 {[%clk 0:02:34]} 2. Nf3 {[%clk 0:02:59]}  e6 {[%clk 0:02:34]} 3. g3 {[%clk 0:02:56]}  Nc6 {[%clk 0:02:33]} 4. Bg2 {[%clk 0:02:56]}  Nf6 {[%clk 0:02:32]} 5. Qe2 {[%clk 0:02:55]}  d5 {[%clk 0:02:32]} 6. exd5 {[%clk 0:02:55]}  Nxd5 {[%clk 0:02:33]} 7. O-O {[%clk 0:02:55]}  Be7 {[%clk 0:02:32]} 8. Rd1 {[%clk 0:02:56]}  Bf6 {[%clk 0:02:31]} 9. Nc3 {[%clk 0:02:56]}  O-O {[%clk 0:02:31]} 10. Ne4 {[%clk 0:02:54]}  b6 {[%clk 0:02:27]} 11. Nxf6+ {[%clk 0:02:31]}  Qxf6 {[%clk 0:02:28]} 12. d4 {[%clk 0:02:04]}  cxd4 {[%clk 0:02:23]} 13. Qe4 {[%clk 0:02:01]}  Bb7 {[%clk 0:02:13]} 14. Bg5 {[%clk 0:01:53]}  Qg6 {[%clk 0:02:10]} 15. Qxg6 {[%clk 0:01:38]}  hxg6 {[%clk 0:02:10]} 16. Nxd4 {[%clk 0:01:38]}  Rfc8 {[%clk 0:01:06]} 17. c4 {[%clk 0:01:29]}  Ndb4 {[%clk 0:00:57]} 18. Nb5 {[%clk 0:01:29]}  Na5 {[%clk 0:00:51]} 19. Nd6 {[%clk 0:01:25]}  Rc7 {[%clk 0:00:41]} 20. Nxb7 {[%clk 0:01:22]}  Nxb7 {[%clk 0:00:42]} 21. Bf4 {[%clk 0:01:11]}  Re7 {[%clk 0:00:41]} 22. a3 {[%clk 0:00:39]}  Na6 {[%clk 0:00:34]} 23. b4 {[%clk 0:00:39]}  Rc8 {[%clk 0:00:31]} 24. Rac1 {[%clk 0:00:39]}  Nd8 {[%clk 0:00:29]} 25. Bg5 {[%clk 0:00:32]}  f6 {[%clk 0:00:28]} 26. Be3 {[%clk 0:00:33]}  Nb8 {[%clk 0:00:24]} 27. c5 {[%clk 0:00:33]}  b5 {[%clk 0:00:21]} 28. Rd6 {[%clk 0:00:27]}  Ndc6 {[%clk 0:00:20]} 29. Rcd1 {[%clk 0:00:27]}  Kf7 {[%clk 0:00:20]} 30. h4 {[%clk 0:00:27]}  Rcc7 {[%clk 0:00:19]} 31. Bf4 {[%clk 0:00:25]}  e5 {[%clk 0:00:18]} 32. Be3 {[%clk 0:00:26]}  Ke8 {[%clk 0:00:17]} 33. Be4 {[%clk 0:00:26]}  f5 {[%clk 0:00:16]} 34. Bg2 {[%clk 0:00:25]}  Red7 {[%clk 0:00:14]} 35. Bg5 {[%clk 0:00:22]}  Rxd6 {[%clk 0:00:13]} 36. Rxd6 {[%clk 0:00:23]}  Kf7 {[%clk 0:00:11]} 37. Bd5+ {[%clk 0:00:23]}  Kf8 {[%clk 0:00:10]} 38. Rxg6 {[%clk 0:00:23]}  Ne7 {[%clk 0:00:09]} 39. Bxe7+ {[%clk 0:00:16]}  Rxe7 {[%clk 0:00:10]} 40. Rd6 {[%clk 0:00:15]}  Rd7 {[%clk 0:00:10]} 41. Rxd7 {[%clk 0:00:12]}  Nxd7 {[%clk 0:00:11]} 42. Be6 {[%clk 0:00:13]}  Nf6 {[%clk 0:00:10]} 43. Bxf5 {[%clk 0:00:13]}  Nd5 {[%clk 0:00:10]} 44. Bd3 {[%clk 0:00:13]}  a6 {[%clk 0:00:09]} 45. Be4 {[%clk 0:00:13]}  Nc3 {[%clk 0:00:09]} 46. Bb7 {[%clk 0:00:14]}  Nb1 {[%clk 0:00:08]} 47. Bxa6 {[%clk 0:00:14]}  Nxa3 {[%clk 0:00:09]} 48. c6 {[%clk 0:00:14]}  Ke7 {[%clk 0:00:07]} 49. c7 {[%clk 0:00:14]} 1-0


[Site "https://www.chess.com"]

[Event "Titled Tuesday Blitz May 9 Early 2023"]
[White "Lavrik, Dmitry"]
[Black "Gvanceladze, Anna"]
[WhiteFideId "24113190"]
[BlackFideId "4113721"]
[WhiteElo "2345"]
[BlackElo "2025"]
[Result "1-0"]
[Round "01"]
[TimeControl "180+2"]
[Date "2023.05.09"]
[WhiteClock "0:00:22"]
[BlackClock "0:00:11"]

1. c4 {[%clk 0:02:59]}  e5 {[%clk 0:02:59]} 2. g3 {[%clk 0:02:59]}  Nf6 {[%clk 0:02:59]} 3. Bg2 {[%clk 0:02:57]}  Nc6 {[%clk 0:03:00]} 4. Nc3 {[%clk 0:02:55]}  Bc5 {[%clk 0:03:00]} 5. e3 {[%clk 0:02:53]}  d5 {[%clk 0:03:00]} 6. cxd5 {[%clk 0:02:33]}  Nb4 {[%clk 0:03:00]} 7. d3 {[%clk 0:02:33]}  Nfxd5 {[%clk 0:03:00]} 8. Nxd5 {[%clk 0:02:27]}  Nxd5 {[%clk 0:03:01]} 9. a3 {[%clk 0:02:27]}  a5 {[%clk 0:03:00]} 10. Qc2 {[%clk 0:02:23]}  Bb6 {[%clk 0:02:55]} 11. b3 {[%clk 0:02:20]}  O-O {[%clk 0:02:55]} 12. Bb2 {[%clk 0:02:20]}  f6 {[%clk 0:02:44]} 13. Nf3 {[%clk 0:02:15]}  Be6 {[%clk 0:02:43]} 14. O-O {[%clk 0:02:13]}  Qd7 {[%clk 0:02:43]} 15. Nd2 {[%clk 0:02:10]}  Rad8 {[%clk 0:02:41]} 16. Rfd1 {[%clk 0:02:06]}  c6 {[%clk 0:02:37]} 17. Nc4 {[%clk 0:02:05]}  Bc7 {[%clk 0:02:38]} 18. d4 {[%clk 0:01:59]}  exd4 {[%clk 0:02:31]} 19. e4 {[%clk 0:01:48]}  Nb6 {[%clk 0:01:37]} 20. Rxd4 {[%clk 0:01:46]}  Qf7 {[%clk 0:01:35]} 21. Nxa5 {[%clk 0:01:32]}  Rxd4 {[%clk 0:01:30]} 22. Bxd4 {[%clk 0:01:33]}  Rd8 {[%clk 0:01:28]} 23. Be3 {[%clk 0:01:30]}  Bc8 {[%clk 0:00:56]} 24. Rd1 {[%clk 0:01:24]}  Rxd1+ {[%clk 0:00:51]} 25. Qxd1 {[%clk 0:01:25]}  Nd7 {[%clk 0:00:51]} 26. Nc4 {[%clk 0:01:21]}  Ne5 {[%clk 0:00:51]} 27. Nxe5 {[%clk 0:00:58]}  Bxe5 {[%clk 0:00:52]} 28. f4 {[%clk 0:00:59]}  Bb2 {[%clk 0:00:49]} 29. a4 {[%clk 0:00:55]}  Be6 {[%clk 0:00:49]} 30. b4 {[%clk 0:00:46]}  Bb3 {[%clk 0:00:45]} 31. Qd2 {[%clk 0:00:33]}  Ba3 {[%clk 0:00:39]} 32. a5 {[%clk 0:00:32]}  h5 {[%clk 0:00:23]} 33. Bf1 {[%clk 0:00:26]}  Qe7 {[%clk 0:00:19]} 34. Bc5 {[%clk 0:00:22]}  Qxe4 {[%clk 0:00:20]} 35. Qd8+ {[%clk 0:00:22]}  Kh7 {[%clk 0:00:11]} 36. Bd3 {[%clk 0:00:22]} 1-0


[Site "https://www.chess.com"]

[Event "Titled Tuesday Blitz May 9 Early 2023"]
[White "LeoLV10"]
[Black "Aaditya Dhingra"]
[BlackFideId "25678191"]
[WhiteElo "2392"]
[BlackElo "2083"]
[Result "0-1"]
[Round "01"]
[TimeControl "180+2"]
[Date "2023.05.09"]
[WhiteClock "0:00:10"]
[BlackClock "0:00:04"]

1. e4 {[%clk 0:02:59]}  g6 {[%clk 0:02:57]} 2. d4 {[%clk 0:02:57]}  Bg7 {[%clk 0:02:57]} 3. f4 {[%clk 0:02:56]}  d5 {[%clk 0:02:55]} 4. e5 {[%clk 0:02:55]}  h5 {[%clk 0:02:55]} 5. h3 {[%clk 0:02:53]}  Nh6 {[%clk 0:02:54]} 6. Nf3 {[%clk 0:02:53]}  Nf5 {[%clk 0:02:53]} 7. c3 {[%clk 0:02:54]}  Ng3 {[%clk 0:02:44]} 8. Rg1 {[%clk 0:02:50]}  Nxf1 {[%clk 0:02:40]} 9. Rxf1 {[%clk 0:02:48]}  Bf5 {[%clk 0:02:36]} 10. Nh4 {[%clk 0:02:42]}  Be4 {[%clk 0:02:33]} 11. f5 {[%clk 0:02:40]}  e6 {[%clk 0:02:21]} 12. f6 {[%clk 0:02:31]}  Bf8 {[%clk 0:02:18]} 13. Nd2 {[%clk 0:02:28]}  Bd3 {[%clk 0:02:12]} 14. Rf3 {[%clk 0:02:25]}  Ba6 {[%clk 0:02:10]} 15. Rf2 {[%clk 0:02:09]}  c5 {[%clk 0:02:03]} 16. Nhf3 {[%clk 0:02:08]}  Nc6 {[%clk 0:01:58]} 17. Nb3 {[%clk 0:02:05]}  cxd4 {[%clk 0:01:54]} 18. Nbxd4 {[%clk 0:02:04]}  Nxd4 {[%clk 0:01:45]} 19. Nxd4 {[%clk 0:02:04]}  Qc7 {[%clk 0:01:38]} 20. Bf4 {[%clk 0:02:01]}  g5 {[%clk 0:01:30]} 21. Bh2 {[%clk 0:01:58]}  O-O-O {[%clk 0:01:26]} 22. Rc2 {[%clk 0:01:51]}  g4 {[%clk 0:01:22]} 23. h4 {[%clk 0:01:49]}  Bh6 {[%clk 0:01:17]} 24. Bg3 {[%clk 0:01:48]}  Qc4 {[%clk 0:01:13]} 25. Kf2 {[%clk 0:01:30]}  Qd3 {[%clk 0:01:06]} 26. Qxd3 {[%clk 0:00:59]}  Bxd3 {[%clk 0:01:05]} 27. Rcc1 {[%clk 0:01:00]}  Bxc1 {[%clk 0:01:04]} 28. Rxc1 {[%clk 0:01:00]}  Kd7 {[%clk 0:01:04]} 29. Bf4 {[%clk 0:01:00]}  Rc8 {[%clk 0:01:03]} 30. Ke3 {[%clk 0:00:59]}  Be4 {[%clk 0:01:03]} 31. g3 {[%clk 0:00:59]}  a6 {[%clk 0:01:01]} 32. a4 {[%clk 0:00:58]}  Rc5 {[%clk 0:00:58]} 33. Kd2 {[%clk 0:00:42]}  Rhc8 {[%clk 0:00:55]} 34. Be3 {[%clk 0:00:35]}  Ra5 {[%clk 0:00:52]} 35. b3 {[%clk 0:00:32]}  b5 {[%clk 0:00:48]} 36. Ra1 {[%clk 0:00:26]}  Bg6 {[%clk 0:00:32]} 37. Ne2 {[%clk 0:00:25]}  bxa4 {[%clk 0:00:31]} 38. b4 {[%clk 0:00:22]}  Rb5 {[%clk 0:00:31]} 39. Rxa4 {[%clk 0:00:22]}  Ra8 {[%clk 0:00:30]} 40. Nd4 {[%clk 0:00:20]}  Rbb8 {[%clk 0:00:30]} 41. Nb3 {[%clk 0:00:20]}  Kc6 {[%clk 0:00:28]} 42. Nc5 {[%clk 0:00:20]}  a5 {[%clk 0:00:23]} 43. Rxa5 {[%clk 0:00:18]}  Rxa5 {[%clk 0:00:23]} 44. bxa5 {[%clk 0:00:19]}  Rb2+ {[%clk 0:00:22]} 45. Ke1 {[%clk 0:00:19]}  Rb5 {[%clk 0:00:17]} 46. a6 {[%clk 0:00:18]}  Ra5 {[%clk 0:00:16]} 47. Bd4 {[%clk 0:00:15]}  Be4 {[%clk 0:00:14]} 48. Kf2 {[%clk 0:00:15]}  Rxc5 {[%clk 0:00:13]} 49. Bxc5 {[%clk 0:00:15]}  Kxc5 {[%clk 0:00:13]} 50. Ke3 {[%clk 0:00:14]}  Bh1 {[%clk 0:00:12]} 51. a7 {[%clk 0:00:12]}  d4+ {[%clk 0:00:12]} 52. cxd4+ {[%clk 0:00:13]}  Kb6 {[%clk 0:00:12]} 53. d5 {[%clk 0:00:12]}  Bxd5 {[%clk 0:00:12]} 54. Kf4 {[%clk 0:00:12]}  Kxa7 {[%clk 0:00:10]} 55. Kg5 {[%clk 0:00:13]}  Kb6 {[%clk 0:00:08]} 56. Kxh5 {[%clk 0:00:14]}  Bf3 {[%clk 0:00:08]} 57. Kg5 {[%clk 0:00:14]}  Kc5 {[%clk 0:00:08]} 58. h5 {[%clk 0:00:14]}  Kd5 {[%clk 0:00:08]} 59. h6 {[%clk 0:00:15]}  Be4 {[%clk 0:00:08]} 60. Kxg4 {[%clk 0:00:13]}  Kxe5 {[%clk 0:00:08]} 61. Kg5 {[%clk 0:00:14]}  Bh7 {[%clk 0:00:08]} 62. g4 {[%clk 0:00:14]}  Bg6 {[%clk 0:00:07]} 63. Kh4 {[%clk 0:00:08]}  Kxf6 {[%clk 0:00:07]} 64. g5+ {[%clk 0:00:09]}  Kf5 {[%clk 0:00:07]} 65. h7 {[%clk 0:00:09]}  Bxh7 {[%clk 0:00:07]} 66. Kh5 {[%clk 0:00:10]}  e5 {[%clk 0:00:07]} 67. Kh6 {[%clk 0:00:10]}  Bg6 {[%clk 0:00:06]} 68. Kg7 {[%clk 0:00:10]}  e4 {[%clk 0:00:06]} 69. Kh6 {[%clk 0:00:10]}  e3 {[%clk 0:00:06]} 70. Kg7 {[%clk 0:00:11]}  e2 {[%clk 0:00:06]} 71. Kh6 {[%clk 0:00:12]}  e1=Q {[%clk 0:00:06]} 72. Kg7 {[%clk 0:00:13]}  Qe5+ {[%clk 0:00:06]} 73. Kg8 {[%clk 0:00:13]}  Qb8+ {[%clk 0:00:05]} 74. Kg7 {[%clk 0:00:13]}  Qc7 {[%clk 0:00:05]} 75. Kh6 {[%clk 0:00:12]}  Qd6 {[%clk 0:00:04]} 76. Kg7 {[%clk 0:00:12]}  Kxg5 {[%clk 0:00:04]} 77. Kg8 {[%clk 0:00:11]}  Qe5 {[%clk 0:00:04]} 78. Kf8 {[%clk 0:00:10]}  Kh6 {[%clk 0:00:04]} 79. Kg8 {[%clk 0:00:10]}  Qe8# {[%clk 0:00:04]} 0-1


[Site "https://www.chess.com"]

[Event "Titled Tuesday Blitz May 9 Early 2023"]
[White "Marcziter, Dmitrii"]
[Black "Sammed Jaykumar, Shete"]
[WhiteFideId "13900765"]
[BlackFideId "5073421"]
[WhiteElo "2162"]
[BlackElo "2278"]
[Result "0-1"]
[Round "01"]
[TimeControl "180+2"]
[Date "2023.05.09"]
[WhiteClock "0:00:11"]
[BlackClock "0:00:09"]

1. d4 {[%clk 0:02:56]}  Nf6 {[%clk 0:02:58]} 2. c4 {[%clk 0:02:54]}  g6 {[%clk 0:02:56]} 3. Nf3 {[%clk 0:02:52]}  Bg7 {[%clk 0:02:55]} 4. g3 {[%clk 0:02:53]}  O-O {[%clk 0:02:55]} 5. Bg2 {[%clk 0:02:54]}  c5 {[%clk 0:02:55]} 6. O-O {[%clk 0:02:53]}  cxd4 {[%clk 0:02:51]} 7. Qxd4 {[%clk 0:02:53]}  Nc6 {[%clk 0:02:52]} 8. Qh4 {[%clk 0:02:53]}  h5 {[%clk 0:02:52]} 9. h3 {[%clk 0:02:44]}  d5 {[%clk 0:02:40]} 10. Nbd2 {[%clk 0:02:38]}  e5 {[%clk 0:02:32]} 11. cxd5 {[%clk 0:02:33]}  Nxd5 {[%clk 0:02:33]} 12. Qxd8 {[%clk 0:02:32]}  Rxd8 {[%clk 0:02:34]} 13. Nc4 {[%clk 0:02:31]}  f6 {[%clk 0:02:26]} 14. Rd1 {[%clk 0:02:26]}  Be6 {[%clk 0:02:26]} 15. Ne3 {[%clk 0:02:22]}  Nb6 {[%clk 0:01:57]} 16. Bd2 {[%clk 0:02:19]}  e4 {[%clk 0:01:50]} 17. Ne1 {[%clk 0:02:12]}  f5 {[%clk 0:01:49]} 18. Bc3 {[%clk 0:02:10]}  Bxc3 {[%clk 0:01:44]} 19. bxc3 {[%clk 0:02:10]}  Na4 {[%clk 0:01:45]} 20. Rdc1 {[%clk 0:02:01]}  Rd2 {[%clk 0:01:43]} 21. Kf1 {[%clk 0:01:58]}  Bxa2 {[%clk 0:01:24]} 22. f3 {[%clk 0:01:55]}  Nc5 {[%clk 0:01:10]} 23. N1c2 {[%clk 0:01:49]}  Nb3 {[%clk 0:00:57]} 24. Rxa2 {[%clk 0:01:47]}  Nxc1 {[%clk 0:00:56]} 25. Rb2 {[%clk 0:01:45]}  a5 {[%clk 0:00:31]} 26. fxe4 {[%clk 0:01:35]}  a4 {[%clk 0:00:20]} 27. exf5 {[%clk 0:01:31]}  a3 {[%clk 0:00:20]} 28. Rxb7 {[%clk 0:01:30]}  Ne5 {[%clk 0:00:20]} 29. Re7 {[%clk 0:01:18]}  Ra5 {[%clk 0:00:21]} 30. f6 {[%clk 0:01:04]}  Rxe2 {[%clk 0:00:12]} 31. Bd5+ {[%clk 0:00:55]}  Rxd5 {[%clk 0:00:10]} 32. Nxd5 {[%clk 0:00:55]}  a2 {[%clk 0:00:11]} 33. Rg7+ {[%clk 0:00:54]}  Kf8 {[%clk 0:00:10]} 34. Na1 {[%clk 0:00:50]}  Ned3 {[%clk 0:00:09]} 35. Ra7 {[%clk 0:00:44]}  Rf2+ {[%clk 0:00:09]} 36. Kg1 {[%clk 0:00:44]}  Ne2+ {[%clk 0:00:10]} 37. Kh1 {[%clk 0:00:42]}  Nxg3+ {[%clk 0:00:11]} 38. Kg1 {[%clk 0:00:42]}  Ne2+ {[%clk 0:00:12]} 39. Kh1 {[%clk 0:00:42]}  Rf1+ {[%clk 0:00:11]} 40. Kg2 {[%clk 0:00:42]}  Rf2+ {[%clk 0:00:11]} 41. Kh1 {[%clk 0:00:40]}  Ne1 {[%clk 0:00:08]} 42. c4 {[%clk 0:00:25]}  Nf3 {[%clk 0:00:07]} 43. Ra8+ {[%clk 0:00:18]}  Kf7 {[%clk 0:00:08]} 44. Ra7+ {[%clk 0:00:19]}  Ke6 {[%clk 0:00:07]} 45. Re7+ {[%clk 0:00:18]}  Kd6 {[%clk 0:00:08]} 46. Rxe2 {[%clk 0:00:16]}  Rxe2 {[%clk 0:00:09]} 47. c5+ {[%clk 0:00:13]}  Kxd5 {[%clk 0:00:08]} 48. f7 {[%clk 0:00:11]}  Rh2# {[%clk 0:00:09]} 0-1


[Site "https://www.chess.com"]

[Event "Titled Tuesday Blitz May 9 Early 2023"]
[White "Rottenwohrer Suarez, Juan"]
[Black "Djokic, Mihailo"]
[WhiteFideId "32068182"]
[BlackFideId "976440"]
[WhiteElo "2174"]
[BlackElo "2294"]
[Result "0-1"]
[Round "01"]
[TimeControl "180+2"]
[Date "2023.05.09"]
[WhiteClock "0:00:00"]
[BlackClock "0:00:21"]

1. d4 {[%clk 0:02:59]}  Nf6 {[%clk 0:02:57]} 2. c4 {[%clk 0:03:00]}  g6 {[%clk 0:02:56]} 3. Nc3 {[%clk 0:02:59]}  d6 {[%clk 0:02:56]} 4. e4 {[%clk 0:02:59]}  Bg7 {[%clk 0:02:56]} 5. Be2 {[%clk 0:03:00]}  O-O {[%clk 0:02:56]} 6. Be3 {[%clk 0:03:00]}  Na6 {[%clk 0:02:54]} 7. h4 {[%clk 0:02:57]}  h5 {[%clk 0:02:52]} 8. f3 {[%clk 0:02:42]}  e5 {[%clk 0:02:50]} 9. d5 {[%clk 0:02:41]}  Nc5 {[%clk 0:02:48]} 10. b4 {[%clk 0:02:30]}  Ncd7 {[%clk 0:02:48]} 11. Nh3 {[%clk 0:02:03]}  a5 {[%clk 0:02:46]} 12. a3 {[%clk 0:02:01]}  Nh7 {[%clk 0:02:07]} 13. Ng5 {[%clk 0:01:48]}  Nxg5 {[%clk 0:01:51]} 14. Bxg5 {[%clk 0:01:42]}  f6 {[%clk 0:01:51]} 15. Be3 {[%clk 0:01:42]}  f5 {[%clk 0:01:51]} 16. Bg5 {[%clk 0:01:31]}  Bf6 {[%clk 0:01:37]} 17. Bxf6 {[%clk 0:01:24]}  Nxf6 {[%clk 0:01:37]} 18. Rb1 {[%clk 0:00:46]}  fxe4 {[%clk 0:01:28]} 19. fxe4 {[%clk 0:00:45]}  axb4 {[%clk 0:01:21]} 20. axb4 {[%clk 0:00:44]}  Ng4 {[%clk 0:01:18]} 21. Bxg4 {[%clk 0:00:37]}  Bxg4 {[%clk 0:01:17]} 22. Qd2 {[%clk 0:00:37]}  Ra3 {[%clk 0:01:07]} 23. Qb2 {[%clk 0:00:24]}  Qf6 {[%clk 0:00:53]} 24. Rc1 {[%clk 0:00:18]}  Rb3 {[%clk 0:00:50]} 25. Qd2 {[%clk 0:00:16]}  Rxb4 {[%clk 0:00:40]} 26. Nb5 {[%clk 0:00:12]}  Rb3 {[%clk 0:00:20]} 27. Nxc7 {[%clk 0:00:04]}  Qf4 {[%clk 0:00:20]} 28. Qxf4 {[%clk 0:00:00]}  Rxf4 {[%clk 0:00:21]} 0-1


[Site "https://www.chess.com"]

[Event "Titled Tuesday Blitz May 9 Early 2023"]
[White "Xie, Bryan"]
[Black "Jia, Haoxiang"]
[WhiteFideId "30941296"]
[BlackFideId "8602999"]
[WhiteElo "2033"]
[BlackElo "2675"]
[Result "1-0"]
[Round "01"]
[TimeControl "180+2"]
[Date "2023.05.09"]
[WhiteClock "0:00:18"]
[BlackClock "0:00:08"]

1. d4 {[%clk 0:02:35]}  Nf6 {[%clk 0:02:57]} 2. Nf3 {[%clk 0:02:35]}  g6 {[%clk 0:02:49]} 3. Bf4 {[%clk 0:02:34]}  Bg7 {[%clk 0:02:48]} 4. e3 {[%clk 0:02:34]}  d5 {[%clk 0:02:48]} 5. Be2 {[%clk 0:02:33]}  O-O {[%clk 0:02:48]} 6. O-O {[%clk 0:02:33]}  c5 {[%clk 0:02:39]} 7. c3 {[%clk 0:02:31]}  Nc6 {[%clk 0:02:34]} 8. h3 {[%clk 0:02:30]}  Nd7 {[%clk 0:02:33]} 9. Bh2 {[%clk 0:02:27]}  e5 {[%clk 0:02:33]} 10. dxe5 {[%clk 0:02:22]}  Ndxe5 {[%clk 0:02:33]} 11. Nbd2 {[%clk 0:02:23]}  Be6 {[%clk 0:02:30]} 12. Re1 {[%clk 0:02:11]}  Qb6 {[%clk 0:02:22]} 13. Qb3 {[%clk 0:01:54]}  Rfd8 {[%clk 0:02:12]} 14. Rad1 {[%clk 0:01:52]}  c4 {[%clk 0:01:54]} 15. Qxb6 {[%clk 0:01:43]}  axb6 {[%clk 0:01:55]} 16. a3 {[%clk 0:01:44]}  Ra5 {[%clk 0:01:54]} 17. Nxe5 {[%clk 0:01:37]}  Nxe5 {[%clk 0:01:48]} 18. Bxe5 {[%clk 0:01:32]}  Bxe5 {[%clk 0:01:44]} 19. Nxc4 {[%clk 0:01:32]}  dxc4 {[%clk 0:01:37]} 20. Rxd8+ {[%clk 0:01:27]}  Kg7 {[%clk 0:01:38]} 21. Red1 {[%clk 0:01:22]}  Rb5 {[%clk 0:01:33]} 22. R1d2 {[%clk 0:01:19]}  Bf6 {[%clk 0:01:33]} 23. Rb8 {[%clk 0:01:16]}  Bd5 {[%clk 0:01:25]} 24. Bf3 {[%clk 0:01:01]}  Be5 {[%clk 0:01:20]} 25. Rc8 {[%clk 0:00:48]}  Be6 {[%clk 0:01:14]} 26. Re8 {[%clk 0:00:44]}  Bf6 {[%clk 0:01:11]} 27. Bxb7 {[%clk 0:00:44]}  Rc5 {[%clk 0:01:11]} 28. Rd6 {[%clk 0:00:34]}  b5 {[%clk 0:01:10]} 29. Bc8 {[%clk 0:00:33]}  Bxc8 {[%clk 0:01:00]} 30. f4 {[%clk 0:00:30]}  Be6 {[%clk 0:00:54]} 31. g4 {[%clk 0:00:29]}  h6 {[%clk 0:00:54]} 32. Kf2 {[%clk 0:00:29]}  Rc7 {[%clk 0:00:45]} 33. e4 {[%clk 0:00:29]}  Be7 {[%clk 0:00:45]} 34. Rd1 {[%clk 0:00:26]}  h5 {[%clk 0:00:45]} 35. f5 {[%clk 0:00:25]}  gxf5 {[%clk 0:00:41]} 36. gxf5 {[%clk 0:00:26]}  Bc8 {[%clk 0:00:41]} 37. Kf3 {[%clk 0:00:24]}  Kf6 {[%clk 0:00:38]} 38. Kf4 {[%clk 0:00:24]}  Bc5 {[%clk 0:00:31]} 39. e5+ {[%clk 0:00:22]}  Kg7 {[%clk 0:00:31]} 40. f6+ {[%clk 0:00:19]}  Kh7 {[%clk 0:00:08]} 41. Rdd8 {[%clk 0:00:18]} 1-0


[Site "https://www.chess.com"]

[Event "Titled Tuesday Blitz May 9 Early 2023"]
[White "Lewicki, Miroslaw"]
[Black "Omariev, Maksim"]
[WhiteFideId "1113380"]
[BlackFideId "4193423"]
[WhiteElo "2212"]
[BlackElo "2370"]
[Result "1-0"]
[Round "01"]
[TimeControl "180+2"]
[Date "2023.05.09"]
[WhiteClock "0:01:06"]
[BlackClock "0:00:00"]

1. g3 {[%clk 0:03:00]}  d5 {[%clk 0:02:58]} 2. Bg2 {[%clk 0:02:56]}  c6 {[%clk 0:02:59]} 3. Nf3 {[%clk 0:02:51]}  Nf6 {[%clk 0:02:59]} 4. O-O {[%clk 0:02:52]}  Bf5 {[%clk 0:02:59]} 5. d4 {[%clk 0:02:51]}  e6 {[%clk 0:02:59]} 6. Nbd2 {[%clk 0:02:51]}  h6 {[%clk 0:02:59]} 7. c4 {[%clk 0:02:52]}  Nbd7 {[%clk 0:02:59]} 8. Re1 {[%clk 0:02:51]}  Be7 {[%clk 0:02:57]} 9. b3 {[%clk 0:02:49]}  O-O {[%clk 0:02:57]} 10. Bb2 {[%clk 0:02:48]}  a6 {[%clk 0:02:57]} 11. Ne5 {[%clk 0:02:48]}  Bh7 {[%clk 0:02:41]} 12. Ndf3 {[%clk 0:02:44]}  Qb6 {[%clk 0:02:29]} 13. e3 {[%clk 0:02:42]}  Rfd8 {[%clk 0:02:28]} 14. Bh3 {[%clk 0:02:32]}  Nxe5 {[%clk 0:02:24]} 15. Nxe5 {[%clk 0:02:30]}  c5 {[%clk 0:02:15]} 16. cxd5 {[%clk 0:02:26]}  Nxd5 {[%clk 0:02:10]} 17. Qf3 {[%clk 0:02:24]}  Nf6 {[%clk 0:01:57]} 18. Nc4 {[%clk 0:02:22]}  Qc7 {[%clk 0:01:45]} 19. dxc5 {[%clk 0:02:16]}  Qxc5 {[%clk 0:00:58]} 20. Qxb7 {[%clk 0:02:13]}  Be4 {[%clk 0:00:57]} 21. Qb6 {[%clk 0:02:13]}  Qh5 {[%clk 0:00:53]} 22. Bg2 {[%clk 0:02:07]}  Bxg2 {[%clk 0:00:14]} 23. Kxg2 {[%clk 0:02:07]}  Nd5 {[%clk 0:00:15]} 24. Qd4 {[%clk 0:01:51]}  Bf6 {[%clk 0:00:12]} 25. Qe4 {[%clk 0:01:50]}  Bxb2 {[%clk 0:00:05]} 26. Nxb2 {[%clk 0:01:51]}  Nc3 {[%clk 0:00:06]} 27. Qf4 {[%clk 0:01:35]}  Rd2 {[%clk 0:00:04]} 28. Nc4 {[%clk 0:01:34]}  Rxa2 {[%clk 0:00:04]} 29. Rxa2 {[%clk 0:01:30]}  Nxa2 {[%clk 0:00:05]} 30. Ne5 {[%clk 0:01:12]}  Qf5 {[%clk 0:00:03]} 31. Qd4 {[%clk 0:01:11]}  Rb8 {[%clk 0:00:03]} 32. Nc6 {[%clk 0:01:06]}  Rb5 {[%clk 0:00:00]} 33. Ne7+ {[%clk 0:01:06]} 1-0


[Site "https://www.chess.com"]

[Event "Titled Tuesday Blitz May 9 Early 2023"]
[White "Guzman Moneo, Alberto"]
[Black "Soham Kamotra"]
[WhiteFideId "2209616"]
[BlackFideId "46647490"]
[WhiteElo "2157"]
[BlackElo "2209"]
[Result "0-1"]
[Round "01"]
[TimeControl "180+2"]
[Date "2023.05.09"]
[WhiteClock "0:00:15"]
[BlackClock "0:00:36"]

1. e4 {[%clk 0:02:57]}  c6 {[%clk 0:02:46]} 2. Nf3 {[%clk 0:02:55]}  d5 {[%clk 0:02:43]} 3. d3 {[%clk 0:02:55]}  g6 {[%clk 0:02:37]} 4. e5 {[%clk 0:02:40]}  c5 {[%clk 0:02:33]} 5. d4 {[%clk 0:02:38]}  cxd4 {[%clk 0:02:30]} 6. Nxd4 {[%clk 0:02:38]}  Nc6 {[%clk 0:02:29]} 7. Bb5 {[%clk 0:02:28]}  Bd7 {[%clk 0:02:20]} 8. e6 {[%clk 0:02:25]}  fxe6 {[%clk 0:02:19]} 9. Nc3 {[%clk 0:02:16]}  Bg7 {[%clk 0:02:17]} 10. Nf3 {[%clk 0:02:03]}  Nh6 {[%clk 0:01:44]} 11. h4 {[%clk 0:01:57]}  Qc7 {[%clk 0:01:25]} 12. h5 {[%clk 0:01:54]}  O-O-O {[%clk 0:01:23]} 13. Bg5 {[%clk 0:01:20]}  Nf5 {[%clk 0:00:52]} 14. Bd3 {[%clk 0:01:06]}  h6 {[%clk 0:00:48]} 15. Bd2 {[%clk 0:01:04]}  g5 {[%clk 0:00:48]} 16. a3 {[%clk 0:00:44]}  Rhf8 {[%clk 0:00:46]} 17. Na4 {[%clk 0:00:35]}  Ne5 {[%clk 0:00:38]} 18. Nxe5 {[%clk 0:00:25]}  Qxe5+ {[%clk 0:00:38]} 19. Be2 {[%clk 0:00:15]}  Bxa4 {[%clk 0:00:36]} 0-1


[Site "https://www.chess.com"]